bitfinex/quotes_ETHUSD_20240717
["timestamp","ask_amount","ask_price","bid_price","bid_amount"]
[1721179956061,2.85297,3505.2,3504.3,4.7]
[1721179956612,2.85187,3506.5,3505.1,1.7]
[1721179956757,2.85168,3506.7,3505.6,1.7]
[1721179957068,2.85168,3506.7,3505.7,0.05703833]
[1721179957283,2.85168,3506.7,3505.8,0.05703833]
[1721179957474,2.3292,3507.2,3505.6,1.7]
[1721179957475,2.85177,3506.6,3505.6,1.7]
[1721179957725,2.85177,3506.6,3505.7,0.17]
[1721179958005,2.85147,3507.0,3506.0,1.7]
[1721179958200,2.85137,3507.1,3506.1,0.0570323]
[1721179958585,2.85137,3507.1,3506.0,1.7]
[1721179959594,2.85144,3507.0,3506.0,1.7]
[1721179959772,2.85144,3507.0,3506.1,0.47]
[1721179960471,2.85144,3507.0,3506.0,1.7]
[1721179961865,2.85128,3507.2,3506.0,1.7]
[1721179961866,2.85152,3506.9,3506.0,1.7]
[1721179963000,2.85101,3507.6,3506.0,1.7]
[1721179963001,2.85144,3507.0,3506.0,1.7]
[1721179963668,2.85128,3507.2,3506.1,2.2273]
[1721179963861,2.8512,3507.3,3506.2,0.39273]
[1721179964584,2.8512,3507.3,3506.5,1.7]
[1721179965308,2.85104,3507.5,3506.6,0.05702815]
[1721179965656,2.85098,3507.6,3506.7,0.05702444]
[1721179965822,2.85079,3507.8,3506.5,1.7]
[1721179965823,2.85103,3507.5,3506.5,1.7]
[1721179966118,2.85103,3507.5,3506.6,0.17]
[1721179966295,2.85091,3507.7,3506.7,0.05702457]
[1721179966497,2.85091,3507.7,3506.6,0.17]
[1721179966498,2.85091,3507.7,3506.8,0.05702282]
[1721179966681,2.8507,3507.9,3506.8,0.05702282]
[1721179967023,2.85087,3507.7,3506.8,0.05702282]
[1721179967362,2.85087,3507.7,3507.0,1.7]
[1721179967778,2.8507,3507.9,3507.0,1.87570228]
[1721179967779,2.85074,3507.9,3507.0,1.87570228]
[1721179968419,2.5376963,3508.2,3507.0,1.87570228]
[1721179968617,2.85067,3508.0,3507.0,1.87570228]
[1721179968828,2.85057,3508.1,3507.4,1.7]
[1721179969187,0.1494963,3508.2,3507.4,1.7]
[1721179969188,2.85063,3508.0,3507.4,1.7]
[1721179969521,2.85072,3507.9,3507.4,1.7]
[1721179969669,2.85072,3507.9,3507.0,4.10300228]
[1721179969938,2.85072,3507.9,3507.1,0.41030023]
[1721179970230,2.85072,3507.9,3506.7,1.7]
[1721179970391,2.85094,3507.7,3506.7,1.7]
[1721179970566,2.85109,3507.5,3506.7,1.7]
[1721179971790,2.85112,3507.4,3506.7,1.7]
[1721179972695,2.85099,3507.6,3506.7,1.7]
[1721179973006,2.85099,3507.6,3506.8,0.39273]
[1721179973007,2.85107,3507.5,3506.8,0.39273]
[1721179973656,0.1494963,3508.2,3507.3,1.7]
[1721179973789,2.85077,3507.9,3507.3,1.7]
[1721179974643,2.8506,3508.1,3507.4,0.05701663]
[1721179974931,0.1494963,3508.2,3507.5,0.17570166]
[1721179974932,2.9999563,3508.2,3507.5,0.17570166]
[1721179975137,0.1494963,3508.2,3507.7,1.7]
[1721179975857,0.1494963,3508.2,3507.1,1.7]
[1721179975858,2.85055,3508.1,3507.1,1.7]
[1721179976038,2.85055,3508.1,3506.9,2.2273]
[1721179976039,0.1494963,3508.2,3507.0,3.0]
[1721179976340,2.85092,3507.7,3506.9,3.0]
[1721179976508,2.85096,3507.6,3506.8,0.39273]
[1721179976714,2.85096,3507.6,3506.9,0.209273]
[1721179976897,2.85105,3507.5,3506.9,0.209273]
[1721179977092,2.85111,3507.4,3506.9,0.209273]
[1721179977792,2.85111,3507.4,3506.8,0.39273]
[1721179978001,2.8512,3507.3,3506.8,0.39273]
[1721179978199,2.8512,3507.3,3506.7,1.7]
[1721179980538,0.1494963,3508.2,3506.5,3.0]
[1721179980539,2.85142,3507.1,3506.5,3.0]
[1721179980742,2.85128,3507.2,3506.3,1.7]
[1721179980743,2.85147,3507.0,3506.3,1.7]
[1721179980981,2.9999763,3508.2,3506.2,3.39273]
[1721179980982,2.85162,3506.8,3506.2,0.39273]
[1721179981226,2.85162,3506.8,3505.9,3.9273]
[1721179981227,2.85166,3506.8,3505.9,2.2273]
[1721179981386,2.85166,3506.8,3506.1,1.7]
[1721179982217,2.8513,3507.2,3506.1,1.7]
[1721179982435,2.8515,3507.0,3506.2,0.39273]
[1721179982666,2.85152,3506.9,3506.2,0.39273]
[1721179982868,2.8516,3506.8,3506.2,0.39273]
[1721179983390,2.8511,3507.5,3506.5,1.7]
[1721179983543,2.85128,3507.2,3506.5,1.7]
[1721179983744,2.85111,3507.4,3506.5,1.7]
[1721179983974,2.8512,3507.3,3506.5,1.7]
[1721179984172,2.85075,3507.9,3506.5,1.7]
[1721179984173,2.85128,3507.2,3506.5,1.7]
[1721179984395,2.85113,3507.4,3506.9,1.7]
[1721179984685,2.3699,3508.0,3507.0,0.17]
[1721179984686,2.85078,3507.8,3507.0,0.17]
[1721179984898,2.9999563,3508.2,3507.5,1.7]
[1721179985047,0.1494963,3508.2,3507.6,0.0570111]
[1721179985288,0.1494963,3508.2,3507.9,1.7]
[1721179985571,0.1494963,3508.2,3507.0,0.17]
[1721179985677,0.1494963,3508.2,3507.8,1.7]
[1721179985878,0.1494963,3508.2,3507.9,0.05700705]
[1721179986420,0.1494963,3508.2,3507.8,1.7]
[1721179986578,0.1494963,3508.2,3507.3,1.7]
[1721179986579,2.9999663,3508.2,3507.3,1.7]
[1721179986781,2.85064,3508.0,3507.3,1.7]
[1721179987385,2.85055,3508.1,3507.3,1.7]
[1721179987598,2.85055,3508.1,3507.4,0.17]
[1721179987910,2.85064,3508.0,3507.4,0.17]
[1721179988588,2.85072,3507.9,3507.3,1.7]
[1721179989290,0.1494963,3508.2,3506.9,1.7]
[1721179989291,2.85112,3507.4,3506.9,1.7]
[1721179989492,2.85112,3507.4,3506.7,1.7]
[1721179990083,2.85063,3508.0,3507.2,1.7]
[1721179990307,2.85063,3508.0,3507.3,0.17]
[1721179990514,2.85109,3507.5,3506.7,1.7]
[1721179990714,2.85109,3507.5,3506.8,1.7]
[1721179990895,2.8508,3507.8,3507.2,1.7]
[1721179992034,0.1494963,3508.2,3507.2,3.9273]
[1721179992035,3.0000163,3508.2,3507.2,3.9273]
[1721179992238,2.9999763,3508.2,3507.2,3.9273]
[1721179992539,2.85071,3507.9,3507.2,4.32003]
[1721179993090,2.9999763,3508.2,3507.2,4.32003]
[1721179993091,2.85067,3508.0,3507.2,4.32003]
[1721179995616,2.85071,3507.9,3507.2,4.32003]
[1721179995830,2.85071,3507.9,3507.2,2.09273]
[1721179996038,2.85071,3507.9,3507.2,1.7]
[1721179996340,0.1494963,3508.2,3506.9,3.0]
[1721179996627,2.85101,3507.6,3507.1,1.7]
[1721179996804,5.16057,3508.0,3506.6,4.7]
[1721179996994,5.16057,3508.0,3506.7,0.69273]
[1721179996995,2.85121,3507.3,3506.7,0.69273]
[1721179997640,2.85129,3507.2,3506.7,0.69273]
[1721179997994,2.85129,3507.2,3506.6,1.7]
[1721179998873,2.85135,3507.1,3506.6,1.7]
[1721179999023,2.8512,3507.3,3506.7,0.05702531]
[1721179999325,2.8512,3507.3,3506.6,1.7]
[1721179999628,2.85129,3507.2,3506.6,1.7]
[1721179999809,2.85129,3507.2,3506.7,0.17]
[1721180000213,2.85144,3507.0,3506.6,1.7]
[1721180000427,2.85158,3506.9,3506.2,0.39273]
[1721180001217,2.85131,3507.2,3506.2,0.39273]
[1721180001400,2.85152,3506.9,3506.2,0.39273]
[1721180003535,2.8516,3506.8,3506.2,0.39273]
[1721180003702,2.30544305,3507.1,3506.3,0.432003]
[1721180004123,2.85144,3507.0,3506.3,0.432003]
[1721180004527,2.85152,3506.9,3506.3,0.432003]
[1721180007455,2.85152,3506.9,3506.2,0.39273]
[1721180007626,2.8516,3506.8,3506.2,0.39273]
[1721180009364,2.85144,3507.0,3506.3,0.55]
[1721180010325,2.85153,3506.9,3506.3,0.55]
[1721180010583,2.85161,3506.8,3506.2,0.39273]
[1721180010776,2.85161,3506.8,3506.3,0.509273]
[1721180010988,2.85177,3506.6,3505.8,3.0]
[1721180011276,2.85177,3506.6,3505.9,0.55]
[1721180011277,2.85186,3506.5,3505.9,0.55]
[1721180011488,2.85174,3506.7,3506.2,1.7]
[1721180011638,2.85178,3506.6,3506.2,1.7]
[1721180011848,2.85185,3506.5,3506.2,1.7]
[1721180014910,2.85201,3506.3,3505.5,3.0]
[1721180015090,5.23821,3506.3,3505.3,3.0]
[1721180015440,2.85226,3506.0,3505.3,3.0]
[1721180015682,2.85226,3506.0,3505.1,1.7]
[1721180015860,2.85226,3506.0,3505.2,0.7709]
[1721180016263,2.85226,3506.0,3505.5,1.7]
[1721180016778,2.85209,3506.2,3505.2,0.7709]
[1721180016779,2.85233,3505.9,3505.2,0.7709]
[1721180016961,2.3862,3506.3,3505.3,0.55]
[1721180016962,2.85246,3505.8,3505.3,0.55]
[1721180017273,2.85256,3505.7,3504.9,1.7]
[1721180017694,2.85258,3505.6,3504.9,1.7]
[1721180017865,2.85258,3505.6,3505.0,0.17]
[1721180018994,2.85258,3505.6,3505.1,0.55]
[1721180019388,2.85266,3505.5,3505.1,0.55]
[1721180020170,2.85255,3505.7,3505.1,0.55]
[1721180020381,2.85255,3505.7,3505.2,0.242]
[1721180020666,2.85255,3505.7,3505.3,1.7]
[1721180021396,2.85246,3505.8,3505.3,1.7]
[1721180021397,2.85258,3505.6,3505.3,1.7]
[1721180021791,5.23828,3506.3,3505.4,0.55]
[1721180022110,2.85225,3506.0,3505.4,0.55]
[1721180022319,2.85225,3506.0,3505.5,0.5492]
[1721180022652,2.85225,3506.0,3505.4,0.55]
[1721180025438,2.85251,3505.7,3505.3,1.7]
[1721180025595,2.85258,3505.6,3505.3,1.7]
[1721180028190,2.85258,3505.6,3504.9,1.7]
[1721180028525,2.85258,3505.6,3505.0,1.3209]
[1721180028723,2.85258,3505.6,3505.0,4.3209]
[1721180029417,2.85266,3505.5,3505.0,4.3209]
[1721180030278,2.85281,3505.4,3505.0,3.7709]
[1721180030490,2.85283,3505.3,3504.9,1.7]
[1721180030731,2.8529,3505.2,3504.9,1.7]
[1721180031113,2.85306,3505.0,3504.9,1.7]
[1721180031342,2.853,3505.1,3504.9,1.7]
[1721180033164,2.8531,3505.0,3504.4,1.7]
[1721180033344,2.85321,3504.9,3504.5,0.55]
[1721180033642,2.85321,3504.9,3504.3,0.55]
[1721180033848,2.85321,3504.9,3504.2,0.55]
[1721180034005,2.85321,3504.9,3504.3,0.8259]
[1721180034205,2.85321,3504.9,3504.4,0.55]
[1721180034613,2.85323,3504.8,3504.4,0.55]
[1721180035961,2.8531,3505.0,3504.4,3.55]
[1721180037775,2.4059,3505.5,3504.4,3.55]
[1721180037981,2.85288,3505.3,3504.7,1.7]
[1721180038476,2.85299,3505.1,3504.7,1.7]
[1721180039672,2.85288,3505.3,3504.7,1.7]
[1721180039850,2.8529,3505.2,3504.7,1.7]
[1721180040440,2.85274,3505.4,3504.7,1.7]
[1721180040669,2.85282,3505.3,3504.8,0.530759]
[1721180040973,2.43,3506.3,3504.8,0.530759]
[1721180041178,2.2732,3506.0,3505.3,1.7]
[1721180041340,2.85237,3505.9,3505.3,1.7]
[1721180041541,2.85241,3505.8,3505.3,1.7]
[1721180042071,5.12508,3506.5,3504.9,2.884]
[1721180042072,2.85266,3505.5,3504.9,1.7]
[1721180042282,2.85287,3505.3,3504.6,3.0]
[1721180042640,2.85287,3505.3,3504.5,4.7]
[1721180042832,2.85287,3505.3,3504.6,1.15759]
[1721180043148,2.85287,3505.3,3504.6,4.15759]
[1721180043607,2.85287,3505.3,3504.6,3.60759]
[1721180043775,2.85293,3505.2,3504.5,1.7]
[1721180044306,2.4121,3505.7,3504.5,1.7]
[1721180044307,2.85279,3505.4,3504.5,1.7]
[1721180044506,2.85279,3505.4,3504.9,1.7]
[1721180044818,2.4121,3505.7,3504.9,1.7]
[1721180045024,2.4121,3505.7,3505.0,0.72]
[1721180045497,5.26462,3505.7,3505.0,0.72]
[1721180045707,5.26462,3505.7,3505.0,0.55]
[1721180046382,2.8528,3505.4,3504.9,1.7]
[1721180046574,2.8528,3505.4,3504.5,1.7]
[1721180046770,2.85226,3506.0,3504.9,1.7]
[1721180046961,2.85226,3506.0,3505.0,0.55]
[1721180047166,2.85226,3506.0,3505.1,0.525]
[1721180047897,2.85234,3505.9,3505.1,0.525]
[1721180049082,2.85242,3505.8,3505.1,0.525]
[1721180049272,2.85242,3505.8,3505.0,0.55]
[1721180049903,2.85242,3505.8,3504.9,1.7]
[1721180049904,2.85257,3505.6,3504.9,1.7]
[1721180050093,2.8525,3505.7,3504.9,1.7]
[1721180051788,2.8524,3505.9,3504.9,1.7]
[1721180052133,5.11528,3506.1,3505.3,1.7]
[1721180052318,2.85214,3506.2,3505.3,1.7]
[1721180052813,2.85214,3506.2,3505.0,2.2273]
[1721180052814,2.85155,3506.9,3506.2,1.7]
[1721180053050,2.85129,3507.2,3506.2,1.7]
[1721180053234,2.85129,3507.2,3506.2,1.87]
[1721180053235,2.85138,3507.1,3506.2,1.87]
[1721180053452,2.85124,3507.3,3506.2,1.87]
[1721180053744,2.85136,3507.1,3506.2,1.87]
[1721180053906,5.21783,3507.4,3506.2,1.87]
[1721180054232,2.85141,3507.1,3506.2,1.87]
[1721180054391,2.85163,3506.8,3505.7,1.7]
[1721180054606,2.85163,3506.8,3505.8,0.55]
[1721180054929,2.85169,3506.7,3505.8,0.55]
[1721180055140,2.4467,3506.6,3505.8,0.55]
[1721180056161,2.85187,3506.5,3505.7,1.7]
[1721180057002,2.85194,3506.4,3505.7,0.17]
[1721180057309,2.85194,3506.4,3504.7,6.60450887]
[1721180057310,2.4467,3506.6,3504.9,1.7]
[1721180057637,5.29921,3505.7,3504.9,4.7]
[1721180057803,2.85262,3505.6,3504.9,1.7]
[1721180058020,2.85273,3505.5,3504.5,1.7]
[1721180058556,2.85262,3505.6,3504.5,1.7]
[1721180058557,2.85276,3505.4,3504.5,1.7]
[1721180058716,2.85282,3505.3,3504.5,1.7]
[1721180059237,2.976621,3505.7,3504.2,2.85]
[1721180059238,2.8529,3505.2,3504.2,2.85]
[1721180059551,2.8529,3505.2,3504.3,1.183]
[1721180059721,2.8529,3505.2,3504.3,4.183]
[1721180060135,2.85275,3505.4,3504.3,4.183]
[1721180060136,2.85308,3505.0,3504.3,4.183]
[1721180060333,2.85308,3505.0,3504.3,1.183]
[1721180060853,2.85308,3505.0,3504.2,2.85]
[1721180061237,2.85315,3504.9,3504.2,2.85]
[1721180062345,2.85323,3504.8,3504.1,1.7]
[1721180062508,2.85323,3504.8,3503.9,2.884]
[1721180062509,2.3046,3504.7,3503.9,2.884]
[1721180062785,2.8534,3504.6,3504.0,0.4584]
[1721180062906,2.8534,3504.6,3503.7,1.7]
[1721180063122,2.85286,3505.3,3503.7,1.7]
[1721180063123,5.15744,3505.3,3503.8,0.05706906]
[1721180063310,2.3046,3505.3,3503.7,1.7]
[1721180063543,2.85332,3504.7,3503.7,1.7]
[1721180063819,2.85342,3504.6,3503.8,0.55]
[1721180064042,2.85327,3504.8,3503.9,0.225]
[1721180064351,2.85334,3504.7,3503.9,0.225]
[1721180065415,2.85339,3504.6,3503.9,0.225]
[1721180066071,5.15747,3505.3,3503.9,0.225]
[1721180066072,2.85328,3504.8,3503.9,0.225]
[1721180066472,2.85315,3504.9,3504.1,1.7]
[1721180066681,2.85315,3504.9,3504.2,0.2475]
[1721180068969,2.853,3505.1,3504.2,0.2475]
[1721180069281,2.85316,3504.9,3504.2,0.2475]
[1721180069423,2.85306,3505.0,3504.0,0.55]
[1721180069623,2.85306,3505.0,3503.6,3.0]
[1721180069624,2.85363,3504.3,3503.6,3.0]
[1721180069834,2.85363,3504.3,3503.5,1.7]
[1721180071285,2.3485,3504.4,3503.5,1.7]
[1721180071571,5.20206,3504.4,3503.5,1.7]
[1721180071775,5.20206,3504.4,3503.5,3.16545218]
[1721180071988,2.85364,3504.3,3503.5,3.16545218]
[1721180072148,2.85374,3504.2,3503.5,1.7]
[1721180073772,2.85383,3504.1,3503.5,1.7]
[1721180074752,2.85389,3504.0,3503.1,1.7]
[1721180075570,2.3485,3504.4,3503.1,1.7]
[1721180075571,2.85405,3503.8,3503.1,1.7]
[1721180076124,2.8542,3503.6,3502.7,8.98]
[1721180076406,5.22998,3503.5,3502.7,7.28]
[1721180076594,2.85438,3503.4,3502.7,0.4474618]
[1721180076785,2.85438,3503.4,3502.7,0.66220798]
[1721180077307,2.3757,3503.5,3502.7,0.66220798]
[1721180077609,2.85461,3503.1,3502.7,0.4474618]
[1721180077912,2.3757,3503.5,3502.8,0.05709301]
[1721180078073,2.3757,3503.5,3502.9,0.22045548]
[1721180078288,2.85423,3503.6,3503.2,1.7]
[1721180079375,2.85423,3503.6,3502.8,1.7]
[1721180079604,2.85439,3503.4,3502.8,1.7]
[1721180081240,2.85439,3503.4,3502.7,0.4474618]
[1721180081385,2.3077,3503.3,3502.7,0.4474618]
[1721180081592,2.8546,3503.2,3502.7,0.4474618]
[1721180082097,2.85463,3503.1,3502.7,0.4474618]
[1721180085088,5.1622,3503.3,3502.7,0.4474618]
[1721180085831,2.85455,3503.2,3502.7,0.4474618]
[1721180086728,2.3077,3503.3,3502.7,0.4474618]
[1721180086910,2.3077,3503.3,3502.7,0.71929995]
[1721180087143,2.3077,3503.3,3502.7,0.66220798]
[1721180087431,2.85426,3503.6,3502.7,0.66220798]
[1721180087603,2.8543,3503.5,3502.7,0.66220798]
[1721180087787,2.85439,3503.4,3502.7,0.4474618]
[1721180088231,2.85445,3503.3,3502.7,0.4474618]
[1721180088621,2.85438,3503.4,3502.7,0.4474618]
[1721180089119,2.3039,3503.7,3502.9,1.7]
[1721180089446,2.85392,3504.0,3502.9,1.7]
[1721180089598,2.85392,3504.0,3503.0,0.27183026]
[1721180090286,2.85343,3504.6,3503.0,0.27183026]
[1721180090287,2.43,3504.8,3503.5,1.7]
[1721180090500,4.04956784,3505.8,3503.5,1.7]
[1721180090501,5.15726,3504.7,3503.5,1.7]
[1721180090791,2.85345,3504.6,3503.5,1.7]
[1721180091821,2.85353,3504.5,3503.5,1.7]
[1721180092447,2.85363,3504.3,3503.5,1.7]
[1721180093134,2.3039,3504.7,3503.6,0.05707865]
[1721180093135,2.85355,3504.4,3503.6,0.05707865]
[1721180093816,2.85366,3504.3,3503.2,1.7]
[1721180094129,2.85366,3504.3,3503.2,5.53194762]
[1721180094442,2.85366,3504.3,3503.2,2.53194762]
[1721180094635,2.85366,3504.3,3503.3,3.0]
[1721180095217,2.85366,3504.3,3503.6,1.7]
[1721180096659,2.3039,3504.7,3503.6,1.7]
[1721180096660,5.15723,3504.7,3503.7,0.05707869]
[1721180096860,5.915953,3504.7,3503.7,0.05707869]
[1721180097425,2.8534,3504.6,3503.7,0.05707869]
[1721180097636,5.1569,3505.1,3504.0,1.7]
[1721180097821,2.85314,3504.9,3504.0,1.7]
[1721180099619,2.85323,3504.8,3504.0,1.7]
[1721180099859,0.57063,3504.7,3504.0,1.7]
[1721180100257,0.57063,3504.7,3503.6,1.7]
[1721180100475,2.85323,3504.8,3503.7,0.55]
[1721180100635,2.85356,3504.4,3503.4,4.7]
[1721180100844,2.3906,3504.3,3503.4,1.7]
[1721180101145,2.85372,3504.2,3503.4,1.7]
[1721180101346,2.3906,3504.3,3503.3,3.0]
[1721180101520,2.3906,3504.3,3502.7,2.6747618]
[1721180101521,0.48206,3504.2,3502.8,3.0]
[1721180101917,2.85389,3504.0,3503.1,1.7]
[1721180102121,2.85374,3504.2,3503.1,1.7]
[1721180102321,2.3906,3504.3,3502.8,3.0]
[1721180102322,2.85396,3503.9,3502.8,3.0]
[1721180102742,2.85396,3503.9,3502.9,0.55]
[1721180103055,2.85426,3503.6,3502.9,0.79247618]
[1721180103355,2.85426,3503.6,3502.7,0.4474618]
[1721180103356,2.85437,3503.4,3502.7,0.4474618]
[1721180103569,2.85416,3503.7,3502.7,0.4474618]
[1721180103721,2.8542,3503.6,3502.7,0.4474618]
[1721180104149,2.85413,3503.7,3502.7,0.4474618]
[1721180105064,2.85421,3503.6,3502.7,0.4474618]
[1721180105368,2.85421,3503.6,3502.7,1.69020798]
[1721180106868,2.85437,3503.4,3502.7,0.4474618]
[1721180107099,2.8545,3503.3,3502.7,0.4474618]
[1721180107254,2.85453,3503.2,3502.7,0.4474618]
[1721180107782,2.85469,3503.0,3502.7,0.4474618]
[1721180108052,2.85478,3502.9,3502.7,0.4474618]
[1721180108957,2.85485,3502.8,3502.7,0.4474618]
[1721180109566,5.7097,3502.8,3502.7,0.4474618]
[1721180109760,2.85523,3502.4,3501.8,7.28]
[1721180110064,2.85527,3502.3,3501.8,0.44763869]
[1721180110281,2.85538,3502.2,3501.4,1.7]
[1721180110598,2.85538,3502.2,3501.5,0.17]
[1721180110798,5.13222,3502.5,3501.5,0.17]
[1721180111002,2.85512,3502.5,3501.6,0.05711214]
[1721180111394,2.85495,3502.7,3501.6,0.05711214]
[1721180111592,2.85504,3502.6,3501.6,0.05711214]
[1721180111769,2.85513,3502.5,3501.6,0.23747752]
[1721180111979,2.85518,3502.4,3501.5,0.17]
[1721180112218,2.85534,3502.2,3501.5,0.17]
[1721180112423,2.3768,3502.1,3501.3,0.44766308]
[1721180112588,2.85557,3502.0,3501.3,3.0]
[1721180112918,2.85557,3502.0,3500.9,7.28]
[1721180113210,2.8556,3501.9,3500.8,0.44771855]
[1721180113790,2.85568,3501.8,3500.8,0.44771855]
[1721180113989,2.85568,3501.8,3500.9,0.31477186]
[1721180115191,2.85589,3501.6,3500.8,0.44771855]
[1721180115507,2.85575,3501.7,3500.8,0.44771855]
[1721180115707,2.85584,3501.6,3500.8,0.44771855]
[1721180116673,2.85576,3501.7,3500.8,0.44771855]
[1721180116991,2.85584,3501.6,3500.8,0.44771855]
[1721180117231,2.85584,3501.6,3500.9,0.61477186]
[1721180118339,2.85594,3501.5,3500.8,0.44771855]
[1721180118954,2.85443591,3501.5,3500.8,0.44771855]
[1721180119662,2.85609,3501.3,3500.8,0.44771855]
[1721180119965,2.85609,3501.3,3500.7,3.0]
[1721180120117,2.85609,3501.3,3500.6,1.0]
[1721180122519,2.85609,3501.3,3500.6,2.3427763]
[1721180123615,2.335,3501.4,3500.6,2.3427763]
[1721180123835,2.85585,3501.6,3500.6,2.3427763]
[1721180124212,2.85577,3501.7,3500.7,1.75712682]
[1721180124527,2.85584,3501.6,3500.7,1.75712682]
[1721180124859,3.009,3502.6,3500.7,1.75712682]
[1721180124860,2.329,3502.5,3501.5,1.7]
[1721180125060,2.85519,3502.4,3501.5,1.7]
[1721180125517,2.85519,3502.4,3500.8,6.48239031]
[1721180125518,2.85519,3502.4,3501.0,1.7]
[1721180125918,2.85519,3502.4,3500.9,3.0]
[1721180125919,2.3276,3503.0,3501.7,1.7]
[1721180126245,2.3276,3503.0,3501.8,0.17]
[1721180126412,2.3276,3503.0,3501.9,0.05710581]
[1721180126740,5.1823,3503.0,3501.9,0.05710581]
[1721180127129,2.3276,3503.0,3502.1,1.7]
[1721180127332,2.43,3503.5,3502.2,0.05709871]
[1721180127333,2.85446,3503.3,3502.2,0.05709871]
[1721180127520,2.85454,3503.2,3502.3,0.17570987]
[1721180127723,2.85437,3503.4,3502.3,0.17570987]
[1721180128037,5.85405,3503.8,3502.3,0.17570987]
[1721180128254,3.0,3503.8,3502.3,0.17570987]
[1721180128403,5.43,3503.9,3502.3,0.17570987]
[1721180128614,2.85509,3502.6,3501.8,7.28]
[1721180128803,5.71012,3502.6,3501.5,1.7]
[1721180129012,2.8551,3502.5,3501.5,1.7]
[1721180129219,2.4501,3502.8,3501.5,1.7]
[1721180129713,5.30496,3502.8,3501.5,1.7]
[1721180129902,2.4501,3502.8,3501.9,1.7]
[1721180130351,2.85499,3502.7,3501.9,1.7]
[1721180130553,2.4501,3502.8,3501.6,3.0]
[1721180130554,2.85532,3502.3,3501.6,3.0]
[1721180130712,2.85532,3502.3,3501.3,4.7]
[1721180131038,2.85534,3502.2,3501.3,4.7]
[1721180131357,2.85534,3502.2,3501.3,7.136]
[1721180131561,2.85518,3502.4,3501.3,7.136]
[1721180132042,5.30498,3502.8,3501.8,1.7]
[1721180132556,5.30498,3502.8,3501.9,0.06661461]
[1721180133811,2.85461,3503.1,3501.9,0.06661461]
[1721180134045,2.85474,3503.0,3502.2,1.7]
[1721180134551,2.85474,3503.0,3502.3,0.06422496]
[1721180134779,8.22428,3503.3,3502.3,0.06422496]
[1721180134780,5.22428,3503.3,3502.3,0.06422496]
[1721180134974,5.22428,3503.3,3502.2,1.7]
[1721180134975,2.3698,3503.3,3502.2,1.7]
[1721180135247,2.85458,3503.2,3502.3,0.25187799]
[1721180135455,2.3698,3503.3,3502.3,0.25187799]
[1721180135654,2.85429,3503.5,3502.3,0.25187799]
[1721180136854,2.85413,3503.7,3502.3,0.06421184]
[1721180136855,2.85501,3502.7,3502.3,0.06421184]
[1721180137081,2.85518,3502.4,3502.3,0.06421184]
[1721180137250,2.85528,3502.3,3501.7,7.28]
[1721180137564,2.85528,3502.3,3501.8,3.0]
[1721180137920,5.33511,3502.5,3501.7,7.28]
[1721180137921,2.85535,3502.2,3501.7,7.28]
[1721180138126,2.85556,3502.0,3501.7,7.28]
[1721180138856,2.85535,3502.2,3501.7,7.28]
[1721180139365,2.48,3502.5,3501.7,7.28]
[1721180139564,2.85526,3502.4,3501.7,7.28]
[1721180140158,2.85551,3502.0,3501.7,7.28]
[1721180140359,2.85551,3502.0,3501.3,1.7]
[1721180140917,2.85551,3502.0,3501.4,0.06427988]
[1721180141930,2.85551,3502.0,3500.9,1.7]
[1721180142450,2.85551,3502.0,3501.0,0.06430867]
[1721180142648,2.85551,3502.0,3501.1,0.47643087]
[1721180143257,2.85537,3502.2,3501.2,0.06429428]
[1721180143598,2.85537,3502.2,3501.3,1.7]
[1721180144082,2.85556,3502.0,3501.4,0.06427988]
[1721180144776,2.85591,3501.5,3501.4,0.06427988]
[1721180145145,2.856,3501.4,3500.6,2.7]
[1721180145667,2.856,3501.4,3500.7,0.06231649]
[1721180146372,2.856,3501.4,3500.7,3.06231649]
[1721180146532,4.7869,3501.7,3500.7,0.06231649]
[1721180146878,2.85623,3501.2,3500.7,0.06231649]
[1721180147224,4.7869,3501.7,3500.7,0.06231649]
[1721180147225,2.85625,3501.1,3500.7,0.06231649]
[1721180147774,2.85633,3501.0,3500.7,0.06231649]
[1721180150079,2.85608,3501.3,3500.7,0.06231649]
[1721180151280,2.85617,3501.2,3500.7,0.06231649]
[1721180157148,2.85617,3501.2,3499.8,10.13723]
[1721180157383,2.85617,3501.2,3500.8,0.06023207]
[1721180157533,2.85617,3501.2,3500.3,0.44778846]
[1721180157939,2.85617,3501.2,3500.4,0.06026088]
[1721180160363,3.427388,3501.2,3500.4,0.06026088]
[1721180160790,2.85638,3501.0,3500.4,0.06026088]
[1721180160977,2.85646,3500.9,3500.4,0.06026088]
[1721180161409,2.85646,3500.9,3500.3,0.44778846]
[1721180161655,2.85613,3501.3,3500.3,0.44778846]
[1721180161961,2.85617,3501.2,3500.3,0.44778846]
[1721180162177,2.85617,3501.2,3500.4,0.06036424]
[1721180162375,0.764272,3501.6,3500.5,2.2273]
[1721180162376,2.85604,3501.4,3500.5,2.2273]
[1721180162569,2.85604,3501.4,3500.6,0.3339952]
[1721180163481,2.85608,3501.3,3500.6,0.3339952]
[1721180163866,2.85597,3501.5,3500.6,0.3339952]